Cogmind - Beta 15 @@@ ROGUE MODE // 2025.10.04 @ 16:01:25 Player: DietSnapple Result: Destroyed by S-10 Pest with Light Assault Rifle Performance ------------- Evolutions (0) 0 Regions Visited (1) 200 Robots Destroyed (11) 55 Value Destroyed (289) 289 Prototype IDs (0) 0 Alien Tech Used (0) 0 Bonus (0) 0 TOTAL SCORE: 544 Bonus ------- None Cogmind --------- Core Integrity 0/250 Matter 300/300 Energy 100/100 System Corruption 0% Temperature Cool (0) Movement Core (100) Ox1 Location -10/Materials Parts ------- > --- POWER (1) -------- (None) > --- PROPULSION (2) --- (None) > --- UTILITY (2) ------ Small Storage Unit > --- WEAPON (2) ------- (None) > --- INVENTORY (8) ---- Heat Sink Small Battery (100) Small Battery (100) Seismic Detector Targeting Computer Assault Rifle Light Assault Rifle Peak State ------------ > --- POWER ------------ Light Nuclear Core > --- PROPULSION ------- Light Treads Light Treads > --- UTILITY ---------- Improved Heat Sink Small Storage Unit > --- WEAPON ----------- Beam Cannon Beam Cannon > --- INVENTORY -------- Small Battery Small Battery Targeting Computer Assault Rifle Light Assault Rifle [Rating: 11] Favorites ----------- Power Light Nuclear Core Engine Ion Engine Power Core Light Nuclear Core Propulsion Light Treads Treads Light Treads Utility Small Storage Unit Device Improved Heat Sink Storage Small Storage Unit Weapon Assault Rifle Energy Cannon Beam Cannon Ballistic Gun Assault Rifle Build | -11 -10 ------- Run | Yrd Mat Slots Evolved . | . . Power . | . . Propulsion . | . . Utility . | . . Weapon . | . . Parts Attached 13 | 8 5 Power 3 | 1 2 Engine 2 | 1 1 Core 1 | . 1 Reactor . | . . Propulsion 2 | 2 . Treads 2 | 2 . Leg . | . . Wheel . | . . Hover . | . . Flight . | . . Utility 3 | 2 1 Device 2 | 1 1 Storage 1 | 1 . Processor . | . . Hackware . | . . Protection . | . . Artifact . | . . Weapon 5 | 3 2 Energy Gun . | . . Energy Cannon 2 | . 2 Ballistic Gun 3 | 3 . Ballistic Cannon . | . . Launcher . | . . Special Weapon . | . . Impact Weapon . | . . Slashing Weapon . | . . Piercing Weapon . | . . Special Melee Weapon . | . . Unidentified Prototypes . | . . Parts Lost 7 | . 7 Power 2 | . 2 Propulsion 2 | . 2 Utility 1 | . 1 Weapon 2 | . 2 Highest Loss Streak 5 | . 5 To Critical Strikes . | . . Average Backups 6 | 4 6 Power . | . . Propulsion 1 | 2 . Utility 2 | . 3 Weapon 1 | . 1 Tool/Special . | . . Unused Backups 9 | . 9 Power 1 | . 1 Propulsion 4 | . 4 Utility 4 | . 4 Weapon . | . . Tool/Special . | . . Average Slot Usage (%) 89 | . 89 Engine 1 | . 1 Core 8 | . 8 Treads 25 | . 25 Device 12 | . 12 Storage 14 | . 14 Energy Cannon 13 | . 13 Ballistic Gun 11 | . 11 Peak Build Rating 11 | 7 11 Average Rating 8 | 5 8 On Entrance 3 | . 7 Naked Turns . | . . Heaviest Build 17 | 15 17 Greatest Support 40 | 40 40 Greatest Overweight (x) 4 | 1 4 Average Overweight (x) . | . . Largest Inventory Capacity 8 | 8 8 Average Capacity 7 | 7 8 Most Carried 8 | 6 8 Average Carried 6 | 4 6 Final Capacity 8 | 8 8 Final Carried 7 | 6 7 Class Distribution -------------------- 100% | Mutant Dominant Class ---------------- Mutant | -10/Materials Resources | -11 -10 ----------- Run | Yrd Mat Matter Collected 384 | 281 103 Remotely . | . . Salvage Created 430 | 113 317 Parts 19 | 5 14 Haulers Intercepted . | . . Recyclers Shooed . | . . Parts Field Recycled . | . . Retrieved Matter . | . . Parts Self-Destructed . | . . Prevented . | . . Kills | -11 -10 ------- Run | Yrd Mat Combat Hostiles Destroyed 7 | . 7 Guns 2 | . 2 Cannons 4 | . 4 Classes Destroyed 4 | 2 2 Worker 2 | . 2 Tunneler 1 | 1 . Recycler 1 | 1 . Grunt 7 | . 7 Best Kill Streak 6 | 2 6 Combat Bots Only 4 | . 4 Max Kills in Single Turn 2 | 1 2 Gunslinging . | . . Exploded . | . . Melee . | . . Uniques/NPCs Destroyed . | . . Combat | -11 -10 -------- Run | Yrd Mat Hostile Shots Fired 115 | . 115 Missed 31 | . 31 Hits 84 | . 84 Projectile 84 | . 84 Damage Taken 937 | . 937 Core 254 | . 254 Absorbed by Shields . | . . Core Remaining (%) 100 | 100 . Volleys Fired 29 | 3 26 Largest 2 | 2 2 Hottest 120 | 40 120 Shots Fired 57 | 6 51 Gun 18 | 6 12 Cannon 39 | . 39 Launcher . | . . Special . | . . Kinetic 18 | 6 12 Thermal 39 | . 39 Explosive . | . . Electromagnetic . | . . Robot Hit Streak 9 | 5 9 Robot Miss Streak 3 | . 3 Penetration Max . | . . Secondary Targets . | . . Shots Hit Robots 39 | 5 34 Core Hits 13 | 3 10 Critical Kills 1 | . 1 Critical Parts Destroyed . | . . Critical Strikes 1 | . 1 Meltdown 1 | . 1 Melee Attacks . | . . Impact . | . . Slashing . | . . Piercing . | . . Sneak Attacks . | . . Combat Hostiles . | . . Follow-up Attacks . | . . Damage Inflicted 814 | 61 753 Guns 204 | 61 143 Cannons 417 | . 417 Explosions 188 | . 188 Melee . | . . Ramming 5 | . 5 Kinetic 204 | 61 143 Thermal 605 | . 605 Explosive . | . . Electromagnetic . | . . Impact . | . . Slashing . | . . Piercing . | . . Highest Corruption . | . . Average Corruption . | . . Corruption Purged . | . . Corruption Blocked . | . . Overload Shots . | . . Overflow Damage 174 | . 174 Projectiles 5 | . 5 Explosions 169 | . 169 Melee . | . . Knockbacks . | . . Impact . | . . Kinetic . | . . Secondary . | . . Self-Inflicted Damage 97 | . 97 Shots 1 | . 1 Rammed 2 | . 2 Targets Rammed 2 | . 2 Kicked . | . . Crushed . | . . Highest Temperature 147 | . 147 Average Temperature 37 | . 37 Received Heat Transfer 321 | . 321 Siege Activations . | . . Martial Activations . | . . Shielding Activations . | . . Robots Disrupted . | . . Combat Hostiles . | . . Robots Corrupted . | . . Combat Hostiles . | . . Parts Fried . | . . Impact Corruptions . | . . Robots Melted 1 | . 1 Combat Hostiles 1 | . 1 Parts Melted 7 | . 7 Heat Transferred 988 | . 988 Parts Sabotaged . | . . Parts Stolen . | . . Parts Stripped . | . . Power Chain Reactions . | . . Alert | -11 -10 ------- Run | Yrd Mat Maximum Alert Level . | . . Low Security (%) 100 | 100 100 Level 1 . | . . Level 2 . | . . Level 3 . | . . Level 4 . | . . Level 5 . | . . High Security . | . . Max Security . | . . Peak Influence 104 | 5 104 Initial . | . . Average 15 | . 19 Influence Increases 270 | 10 260 Destroy 0b10 Robot/C 140 | . 140 Destroy 0b10 Robot/NC 20 | 10 10 Destroy Leader 30 | . 30 Disable Machine 15 | . 15 Destroy Structure 35 | . 35 Lose Combat Pursuer 30 | . 30 Influence Decreases 202 | 10 192 Time Decay 138 | 10 128 Lost Part 64 | . 64 Squads Dispatched 1 | . 1 Investigation . | . . Extermination . | . . Reinforcement 1 | . 1 Assault . | . . Garrison . | . . Intercept . | . . Searches Triggered . | . . Construction Impeded . | . . Haulers Reinforced . | . . Active Scanning Responses . | . . Cargo Convoy Interrupts . | . . Stealth | -11 -10 --------- Run | Yrd Mat Distress Signals 3 | . 3 Communications Jammed . | . . Distress Signals . | . . Times Spotted 18 | . 18 Peak Tracking Total 6 | . 6 Tactical Retreats 2 | . 2 Traps | -11 -10 ------- Run | Yrd Mat Traps Triggered . | . . Indirectly . | . . Trap Hack Attempts . | . . Triggered . | . . Disarmed . | . . Reprogrammed . | . . Reused . | . . Traps Extracted . | . . Installed . | . . Triggered . | . . Machines | -11 -10 ---------- Run | Yrd Mat Machines Disabled 1 | . 1 Max in Single Turn 1 | . 1 Machines Repaired . | . . Machines Dismantled . | . . Machines Sabotaged . | . . Overloaded Fab Kills . | . . Hacking | -11 -10 --------- Run | Yrd Mat Machines Accessed . | . . Terminals . | . . Fabricators . | . . Repair Stations . | . . Recycling Units . | . . Scanalyzers . | . . Garrison Access . | . . Total Hacks . | . . Successful . | . . Failed . | . . Catastrophic . | . . Database Lockouts . | . . Manual . | . . Terminals . | . . Fabricators . | . . Repair Stations . | . . Recycling Units . | . . Scanalyzers . | . . Garrison Access . | . . Terminal Hacks . | . . Fabricator Hacks . | . . Repair Station Hacks . | . . Recycling Unit Hacks . | . . Scanalyzer . | . . Garrison Access Hacks . | . . Unauthorized Hacks . | . . Terminals . | . . Fabricators . | . . Repair Stations . | . . Recycling Units . | . . Scanalyzers . | . . Garrison Access . | . . Data Cores Recovered . | . . Used . | . . Hacking Detections . | . . Full Trace Events . | . . Feedback Events . | . . Feedback Blocked . | . . Robot Schematics Acquired . | . . Robots Built . | . . Authchips . | . . Time . | . . Total Robot Build Rating . | . . Part Schematics Acquired . | . . Parts Built . | . . Authchips . | . . Time . | . . Total Part Build Rating . | . . Parts Repaired . | . . Time . | . . Parts Recycled . | . . Recycled Matter . | . . Retrieved Matter . | . . Retrieved Components . | . . Parts Scanalyzed . | . . Part Schematics Acquired . | . . Parts Damaged . | . . Bothacking | -11 -10 ------------ Run | Yrd Mat Used RIF Installer . | . . Robots Hacked . | . . Non-combat . | . . Combat . | . . Robot Hacks Applied . | . . Relay Couplers Released . | . . Fabnet Peak Effective % . | . . Robots Rewired . | . . Allies Hacked . | . . Hacks Repelled . | . . Allies | -11 -10 -------- Run | Yrd Mat Total Allies . | . . Largest Group . | . . Highest-Rated Group . | . . Highest-Rated Ally . | . . Total Orders . | . . Ally Attacks . | . . Total Damage . | . . Kills . | . . Allies Corrupted . | . . Allies Melted . | . . Intel | -11 -10 ------- Run | Yrd Mat Active Infowar (turns) 231 | 32 199 Seismic 231 | 32 199 Robot Analysis Total . | . . Derelict Logs Recovered . | . . Drone Launches . | . . Drone Recoveries . | . . Exploration | -11 -10 ------------- Run | Yrd Mat Turns Passed 629 | 120 509 Spaces Moved 330 | 73 257 Core 34 | 21 13 Treads 296 | 52 244 Legs . | . . Wheels . | . . Hover . | . . Flight . | . . Fastest Speed 50 | 50 100 Average Speed 152 | 129 158 Slowest Speed 250 | 160 250 Overloaded Moves . | . . Propulsion Burnouts . | . . Robots Hopped . | . . Potential Cave-ins . | . . Cave-ins Triggered . | . . Exploration Rate (%) 19 | 6 33 Regions Visited 1 Branch Regions . Pre-discovered Areas . | . . Known Exits Taken . | . . Unknown Exits Taken 1 | 1 . Scrap Searched . | . . Spaces Dug . | . . Terrain Destroyed 40 | . 40 Melee . | . . Projectile . | . . AOE 40 | . 40 Terrain Rammed . | . . Walls Destroyed . | . . Machines Disabled . | . . Actions | -11 -10 --------- Run | Yrd Mat Total 400 | 90 310 Wait 1 | . 1 Move 329 | 72 257 Hop . | . . Pick Up 16 | 7 9 Fast Attach 6 | 5 1 Attach 6 | 2 4 Detach 2 | . 2 Swap 1 | 1 . Drop 8 | . 8 Fire 29 | 3 26 Melee . | . . Ram . | . . Kick . | . . Crush 2 | . 2 Escape Stasis . | . . Rewire . | . . Trap . | . . Miscellaneous . | . . Route ------- -11/Scrapyard -10/Materials (discovered 1 exit: [*Mat]) History --------- Turn | Location | Event 15 | -11/Scrapyard | Discovered new exit (range 15) 121 | -11/Scrapyard | Entered Materials 304 | -10/Materials | Build established: Mutant 588 | -10/Materials | Discovered new exit (range 13) 612 | -10/Materials | Core integrity fell below 50% 627 | -10/Materials | Core integrity fell below 20% 630 | -10/Materials | Destroyed by S-10 Pest with Light Assault Rifle Last Messages --------------- 00586_ Heat Sink melted. 00588_ Fusion Modulator explodes. 00588_ Imp. Heat Sink destroyed. 00588_ Destroyed Imp. Heat Sink. 00588_ Ion Engine destroyed. 00588_ Destroyed Ion Engine. 00588_ Beam Cannon destroyed. 00588_ Destroyed Beam Cannon. 00588_ Destroyed Wheel. 00588_ Sml. Matter Pod melted. 00588_ K-01 Serf destroyed. 00588_ Destroyed Wheel. 00588_ K-01 Serf destroyed. 00588_ EXIT=FOUND 00597_ Beam Cannon destroyed. 00611_ T-07 Excavator is excavating. 00614_ W-16 Scout sends out distress signal. 00615_ T-07 Excavator is excavating. 00620_ Lgt. Treads destroyed. 00629_ T-07 Excavator is excavating. Map ----- +----------------------------------------------------+ | ???????????????????????????????????# ?????????? | | ???????????????????????????????????# < ?????????? | | ???????????????????????????????????# ?????????? | | ???????????????????????????????????+ ###+####?? | | ???????????????????????????????????# #?? | | ???????????????????????????????????# +?? | | ???????????????????????????????????# #? | | ???????????????????????????????????# #"""""## | | ???????????????????????????????????# " " | | ???????????????????????????????????# " "## | | ???????????????????????????????????# "[ "" | | ???????????????????????????????????# "%* "" | | ???????????????????????????????????# "% "" | | ???????????????????????????????????# " * ["" | | ???????????????????????????????????# """"""""" | | ???????????????????????????????????# " " " # | | ???????????????????????????????????# # " "##? | | ???????????????????????????????????# ##### ##?? | | ???????????????????????????????????# #???# #??? | | ???????????????????????????????????# ##??# #?## | | ???????????????????????????????????# T#??# #?# | | ???????????????????????????????????# ##??# #?# | | ?????????????????# ????????????????# #???# #?# | | ?????????????????# ##+############ ##??# #?? | | ?????????????????# o g s s T#??# #?? | | ??????????? + @ s ##??# #??# | | ??????????? # u k #####%#### | | ?????????????????### ## ############ | | ?????????????????????# t???????????##/########### | | ?????????????????????#k ??????????? ????????# | | ?????????????????????###?????????? """ ""???????# | | ????????????????????????????????? """ """??????? | | ???????????????????????????????# """ """??????? | | ???????????????????????????????# ????????? | | ???????????????????????????????######?##+######## | | ??????????????????????????????????????# | | ??????????????????????????????????????# ^ | | ??????????????????????????????????????+ | | ??????????????????????????????????????# ####### | | ????????????????????????????????????????????????? | | ????????????????????????????????????????????????? | | ????????????????????????????????????????????????? | | ????????????????????????????????????????????????? | | ????????????????????????????????????????????????? | | ????????????????????????????????????????????????? | | ????????????????????????????????????????????????? | | ????????????????????????????????????????????????? | | ????????????????????????????????????????????????? | | ????????????????????????????????????????????????? | | ????????????????????????????????????????????????? | +----------------------------------------------------+ Best States ------------- Heat Dissipation 39 Energy Generation 14 Energy Capacity 250 Matter Stores 300 Matter Capacity 300 Sight Range 16 Terrain Scan Density 10 Evasion (%) 50 Recoil Reduction 2 Item Schematics ----------------- None Robot Schematics ------------------ None Fabricated ------------ Nothing Repaired ---------- Nothing Alien Tech Used ----------------- None Achievements -------------- None Challenges ------------ None Game ------ Seed MappingPlatingSteel Manual? 0 Play Time 00:09:57 Cumulative 7.4 hours Start 2025.10.04 @ 15:55:50 End 2025.10.04 @ 16:01:25 Sessions 1 Manual Loads 0 Difficulty Rogue Special Mode None Game No. 21 Rogue 14 Adventurer 7 Explorer 0 Win Type - Total 0 Types 0/0/0/0/0/0/0/0/0/0 Lore% 1 Gallery% 12 Achievement% 11 Wizard Run 0 Options --------- Layout 1 ASCII 0 Keyboard 1 Movement Vi Keybinds 0 Fullscreen 1 Font 24/Smallcaps Map View 76x35 Zoom Use 0% Tactical HUD 1 Map Filters NONE Filters NONE Steam 1 RUN: 1634bef6-28ea-4caa-ac53-f94c89688f7f